fUSD/lending_fUSD_20260130
["ID","MTS","AMOUNT","RATE_DAILY","PERIOD"]
[404078725,1769793045774,-500.2342072,0.00017973,2]
[404078726,1769793045783,-500.0,0.00017973,2]
[404078727,1769793045793,-500.0,0.00017973,2]
[404078728,1769793045803,-500.0,0.00017973,2]
[404078729,1769793045812,-432.02224032,0.00017973,2]
[404078730,1769793045822,-160.13080306,0.00017973,2]
[404078731,1769793045831,-500.0,0.00017973,2]
[404078732,1769793045840,-160.23001291,0.00017973,2]
[404078733,1769793045849,-500.0,0.00017973,2]
[404078734,1769793045859,-340.31348241,0.00017973,2]
[404078735,1769793045869,-501.03562757,0.00017973,2]
[404078736,1769793045878,-333.51196878,0.00017973,2]
[404078737,1769793045887,-500.78976485,0.00017973,2]
[404078738,1769793045896,-500.0,0.00017973,2]
[404078739,1769793045905,-284.37159555,0.00017973,2]
[404078740,1769793045914,-160.00319068,0.00017973,2]
[404078741,1769793045923,-500.0,0.00017973,2]
[404078742,1769793045933,-161.13076084,0.00017973,2]
[404078743,1769793045942,-500.0,0.00017973,2]
[404078744,1769793045951,-500.0,0.00017973,2]
[404078745,1769793045962,-500.0,0.00017973,2]
[404078746,1769793045972,-500.0,0.00017973,2]
[404078747,1769793045981,-500.0,0.00017973,2]
[404078748,1769793045991,-500.0,0.00017973,2]
[404078749,1769793046000,-500.0,0.00017973,2]
[404078750,1769793046009,-500.0,0.00017973,2]
[404078751,1769793046019,-309.21369256,0.00017973,2]
[404078752,1769793046028,-500.42764262,0.00017973,2]
[404078753,1769793046037,-162.07893444,0.00017973,2]
[404078754,1769793046049,-165.89161412,0.00017973,2]
[404078755,1769793046059,-500.29869688,0.00017973,2]
[404078756,1769793046069,-169.6863681,0.00017973,2]
[404078757,1769793046081,-208.78313746,0.00017973,2]
[404078758,1769793046091,-160.11295309,0.00017973,2]
[404078759,1769793046099,-500.63516671,0.00017973,2]
[404078760,1769793046108,-500.0,0.00017973,2]
[404078761,1769793046117,-500.0,0.00017973,2]
[404078762,1769793046125,-500.0,0.00017973,2]
[404078763,1769793046134,-500.0,0.00017973,2]
[404078764,1769793046143,-163.36858583,0.00017973,2]
[404078765,1769793046152,-500.0,0.00017973,2]
[404078766,1769793046160,-175.57287607,0.00017973,2]
[404078767,1769793046169,-500.0,0.00017973,2]
[404078768,1769793046178,-151.06501544,0.00017973,2]
[404078769,1769793046187,-500.0,0.00017973,2]
[404078770,1769793046196,-500.0,0.00017973,2]
[404078771,1769793046206,-162.64188199,0.00017973,2]
[404078772,1769793046226,-512.27368738,0.00017973,2]
[404078773,1769793046236,-158.22969695,0.00017973,2]
[404078774,1769793046246,-501.19732692,0.00017973,2]
[404078775,1769793046255,-164.73666016,0.00017973,2]
[404078776,1769793046265,-500.0,0.00017973,2]
[404078777,1769793046275,-500.0,0.00017973,2]
[404078778,1769793046285,-509.35254647,0.00017973,2]
[404078779,1769793046295,-500.0,0.00017973,2]
[404078780,1769793046305,-500.0,0.00017973,2]
[404078781,1769793046315,-392.26050896,0.00017973,2]
[404078782,1769793046324,-500.0,0.00017973,2]
[404078783,1769793046334,-500.0,0.00017973,2]
[404078784,1769793046345,-500.0,0.00017975,2]
[404078785,1769793046355,-200.0,0.00017981,2]
[404078786,1769793046365,-500.0,0.00017982,2]
[404078787,1769793046375,-922.30487324,0.00017982,2]
[404078788,1769793046385,-922.30487324,0.0001799,2]
[404078790,1769793046395,-563.2740213,0.00017991,2]
[404078792,1769793046404,-500.0,0.00017991,2]
[404078794,1769793046414,-500.0,0.00017991,2]
[404078796,1769793046424,-500.0,0.00017991,2]
[404078798,1769793046433,-17511.8610425,0.00017992,2]
[404078800,1769793046443,-822906.5448934,0.00017992,2]
[404078802,1769793046453,-27175.8627513,0.00017992,2]
[404078804,1769793046463,-151.0,0.00017992,2]
[404078806,1769793046477,-152.08724,0.00017992,2]
[404078808,1769793046486,-151.0,0.00017992,2]
[404078810,1769793046496,-151.0,0.00017992,2]
[404078812,1769793046506,-151.0,0.00017992,2]
[404078814,1769793046515,-151.0,0.00017992,2]
[404078816,1769793046524,-151.0,0.00017992,2]
[404078818,1769793046534,-151.0,0.00017992,2]
[404078820,1769793046545,-383.332405,0.00017992,2]
[404078822,1769793046554,-383.332405,0.00017992,2]
[404078824,1769793046563,-383.332405,0.00017992,2]
[404078825,1769793046574,-383.332405,0.00017992,2]
[404078826,1769793046583,-151.0,0.00017992,2]
[404078827,1769793046593,-151.0,0.00017992,2]
[404078828,1769793046604,-151.0,0.00017992,2]
[404078829,1769793046614,-151.0,0.00017992,2]
[404078830,1769793046624,-151.0,0.00017992,2]
[404078831,1769793046634,-452.447922,0.00017992,2]
[404078832,1769793046644,-452.447922,0.00017992,2]
[404078833,1769793046654,-151.0,0.00017992,2]
[404078834,1769793046664,-367.054916,0.00017992,2]
[404078835,1769793046674,-367.054916,0.00017992,2]
[404078836,1769793046683,-151.0,0.00017992,2]
[404078837,1769793046932,-452.447922,0.00017992,2]
[404078838,1769793046942,-151.0,0.00017992,2]
[404078839,1769793046951,-367.054916,0.00017992,2]
[404078840,1769793046961,-452.447922,0.00017992,2]
[404078841,1769793046972,-367.054916,0.00017992,2]
[404078842,1769793046981,-170.231382,0.00017992,2]
[404078843,1769793046990,-151.0,0.00017992,2]
[404078844,1769793047000,-151.0,0.00017992,2]
[404078845,1769793047009,-151.0,0.00017992,2]
[404078846,1769793047019,-341.01221852,0.00017998,2]
[404078847,1769793047028,-389.72824973,0.00017998,2]
[404078848,1769793047037,-366.88182325,0.00017998,2]
[404078849,1769793047047,-150.0,0.00017999,2]
[404078850,1769793047057,-173.99288078,0.00017999,2]
[404078851,1769793047067,-201.378,0.00017999,2]
[404078852,1769793047080,-300.0,0.00017999,2]
[404078853,1769793047091,-300.0,0.00017999,2]
[404078854,1769793047101,-714.96434436,0.00017999,2]
[404078855,1769793047111,-300.0,0.00017999,2]
[404078856,1769793047122,-500.0,0.00017999,2]
[404078857,1769793047131,-500.0,0.00017999,2]
[404078858,1769793047142,-500.0,0.00017999,2]
[404078859,1769793047152,-224.10392643,0.00017999,2]
[404078860,1769793047162,-300.0,0.00017999,2]
[404078861,1769793047172,-300.0,0.00017999,2]
[404078862,1769793047181,-187.19004078,0.00017999,2]
[404078863,1769793047191,-666.0,0.00017999,2]
[404078864,1769793047200,-150.0,0.00017999,2]
[404078865,1769793047210,-1549166.44546405,0.00018,2]
[404078866,1769793047220,-1168506.10150434,0.00018,2]
[404078867,1769793047254,-285.54251942,0.00018,2]
[404078868,1769793047755,-151.0,0.00014837,2]
[404078869,1769793047764,-11502.57608574,0.00018,2]
[404078870,1769793047775,-20617.53104957,0.00018,2]
[404078871,1769793048777,-1009.40030477,0.00018,2]
[404078872,1769793048836,-545.27748718,0.00018,2]
[404078873,1769793048848,-2233.61656241,0.00018,2]
[404078874,1769793048865,-11428.44073493,0.00018,2]
[404078875,1769793048878,-200000.0,0.00018,2]
[404078876,1769793048972,-827.36433445,0.00018,2]
[404078877,1769793048983,-1166.43152022,0.00018,2]
[404078878,1769793100416,1220.60465956,0.0001401,5]
[404078887,1769793760632,7740.34,0.00011545,2]
[404078888,1769793952842,2259.67,0.0001269,2]
[404078889,1769793952866,10000.01,0.0001269,2]
[404078890,1769793952890,1028.10913022,0.0001269,2]
[404078891,1769793999775,343.53398954,0.00014736,7]
[404078892,1769794067415,-2814.99303648,0.00013054,2]
[404078893,1769794067811,-2571.19883918,0.00013054,2]
[404078894,1769794067908,8971.90086978,0.00012869,2]
[404078895,1769794067934,10000.01,0.00012869,2]
[404078896,1769794067963,10000.01,0.00012869,2]
[404078897,1769794067989,10000.01,0.00012869,2]
[404078898,1769794068017,10000.01,0.00012869,2]
[404078899,1769794068044,10000.01,0.00012869,2]
[404078900,1769794068071,10000.01,0.00012869,2]
[404078901,1769794068098,10000.01,0.00012869,2]
[404078902,1769794068127,10000.01,0.00012869,2]
[404078903,1769794068155,10000.01,0.00012869,2]
[404078904,1769794069347,-48182.78119233,0.00012869,2]
[404078905,1769794071347,-275.01153352,0.00012869,2]
[404078906,1769794073263,158.0,0.00012741,2]
[404078907,1769794073783,-250.0,0.00012869,2]
[404078908,1769794076816,-309.85696236,0.00012869,2]
[404078909,1769794077188,-4855.2270478,0.00012869,2]
[404078910,1769794077330,-10000.01,0.00012869,2]
[404078911,1769794077425,-10000.01,0.00012869,2]
[404078912,1769794077568,-10000.01,0.00012869,2]
[404078913,1769794077658,-10000.01,0.00012869,2]
[404078914,1769794077803,-10000.01,0.00012869,2]
[404078915,1769794079402,-10000.01,0.00012869,2]
[404078916,1769794079607,-10000.01,0.00012869,2]
[404078917,1769794079826,-10000.01,0.00012869,2]
[404078918,1769794080032,-10000.01,0.00012869,2]
[404078919,1769794081281,-499.50939922,0.00012869,2]
[404078920,1769794082796,-10000.01,0.00012869,2]
[404078921,1769794083013,-10000.01,0.00012869,2]
[404078922,1769794083119,-10000.01,0.00012869,2]
[404078923,1769794083288,-10000.01,0.00012869,2]
[404078924,1769794083495,-10000.01,0.00012869,2]
[404078925,1769794083658,-10000.01,0.00012869,2]
[404078926,1769794084690,-413.7,0.00012869,2]
[404078927,1769794086637,-586.3,0.00012869,2]
[404078928,1769794089224,-10000.01,0.00012869,2]
[404078929,1769794089382,-10000.01,0.00012869,2]
[404078930,1769794089549,-10000.01,0.00012869,2]
[404078931,1769794089812,-190.63363842,0.00012869,2]
[404078932,1769794094147,-408.3,0.00012869,2]
[404078933,1769794095648,-10000.01,0.00012869,2]
[404078934,1769794095835,-10000.01,0.00012869,2]
[404078935,1769794096038,-10000.01,0.00012869,2]
[404078936,1769794096726,-359.11,0.00012869,2]
[404078937,1769794098197,-359.11,0.00012869,2]
[404078938,1769794098649,-10000.01,0.00012869,2]
[404078939,1769794098922,-10000.01,0.00012869,2]
[404078940,1769794099129,-10000.01,0.00012869,2]
[404078941,1769794099506,-10000.01,0.00012869,2]
[404078942,1769794099624,-10000.01,0.00012869,2]
[404078943,1769794099668,-10000.01,0.00012869,2]
[404078944,1769794099729,-1660.84064343,0.00012869,2]
[404078945,1769794099755,-6678.32871314,0.00012869,2]
[404078946,1769794101512,-153.02502253,0.00013054,2]
[404078947,1769794104310,-1346.86382089,0.00013054,2]
[404078948,1769794106290,-1492.90782458,0.00013054,2]
[404078949,1769794108526,-322.08934496,0.00013054,2]
[404078950,1769794111756,-1492.90782458,0.00013054,2]
[404078951,1769794113875,-49.8184841,0.00013054,2]
[404078952,1769794113897,-450.1815159,0.00013121,2]
[404078953,1769794116770,-856.6584841,0.00013121,2]
[404078954,1769794116796,-250.0,0.00013131,2]
[404078955,1769794116818,-386.24934048,0.0001314,2]
[404078956,1769794118801,-414.32715249,0.0001314,2]
[404078958,1769794180161,891.65825359,0.00010587,2]
[404078985,1769794232155,-258.0,0.0001314,2]
[404078987,1769794232165,-699.42350703,0.0001314,2]
[404078989,1769794232175,-158.0,0.00013296,2]
[404078991,1769794232184,-250.0,0.00013368,2]
[404078993,1769794232193,-166.66,0.00013485,2]
[404078994,1769794232202,-200.0,0.00013699,2]
[404078996,1769794232212,-500.0,0.00013722,2]
[404078998,1769794232222,-1023.0,0.00013751,2]
[404079000,1769794232231,-1200.0,0.00013751,2]
[404079002,1769794232241,-300.0,0.00013751,2]
[404079005,1769794232251,-300.0,0.00013751,2]
[404079007,1769794232260,-14033.59824357,0.00013752,2]
[404079009,1769794232269,-1000.0,0.00013762,2]
[404079011,1769794232278,-150.0,0.00013762,2]
[404079013,1769794232287,-89264.2354,0.00013763,2]
[404079014,1769794232297,-13234.29621741,0.00013764,2]
[404079016,1769794232305,-2836.68343882,0.0001381,2]
[404079018,1769794232314,-357.0,0.00013842,2]
[404079020,1769794232323,-150.99,0.00013852,2]
[404079022,1769794232332,-9999.99,0.00013852,2]
[404079023,1769794232341,-2910.88,0.00013852,2]
[404079024,1769794232350,-9999.99,0.00013852,2]
[404079025,1769794232364,-999.99,0.00013852,2]
[404079026,1769794232374,-150.99,0.00013852,2]
[404079027,1769794232384,-22908.47,0.00013852,2]
[404079028,1769794232393,-299.99,0.00013852,2]
[404079029,1769794232403,-9999.99,0.00013852,2]
[404079030,1769794232412,-3948.368,0.00013853,2]
[404079031,1769794232421,-299.796,0.00013853,2]
[404079032,1769794232430,-163.75117701,0.00013853,2]
[404079033,1769794232440,-296.82,0.00013853,2]
[404079034,1769794232449,-694.38894128,0.00013853,2]
[404079035,1769794232459,-296.82,0.00013853,2]
[404079036,1769794232468,-296.82,0.00013853,2]
[404079037,1769794232477,-296.82,0.00013853,2]
[404079038,1769794232487,-296.82,0.00013853,2]
[404079039,1769794232496,-151.0,0.00013855,2]
[404079040,1769794232506,-151.0,0.00013855,2]
[404079041,1769794232516,-151.0,0.00013855,2]
[404079042,1769794232525,-151.0,0.00013855,2]
[404079043,1769794232535,-151.0,0.00013855,2]
[404079044,1769794232545,-151.0,0.00013855,2]
[404079045,1769794232558,-151.0,0.00013855,2]
[404079046,1769794232568,-151.0,0.00013855,2]
[404079047,1769794232577,-151.0,0.00013855,2]
[404079048,1769794232588,-151.0,0.00013855,2]
[404079049,1769794232598,-151.0,0.00013855,2]
[404079050,1769794232608,-500.0,0.00013855,2]
[404079051,1769794232618,-500.0,0.00013855,2]
[404079052,1769794232629,-500.0,0.00013855,2]
[404079053,1769794232639,-500.0,0.00013855,2]
[404079054,1769794232649,-500.0,0.00013855,2]
[404079055,1769794232659,-500.0,0.00013855,2]
[404079056,1769794232669,-500.0,0.00013855,2]
[404079057,1769794232678,-500.0,0.00013855,2]
[404079058,1769794232687,-500.0,0.00013855,2]
[404079059,1769794232697,-500.0,0.00013855,2]
[404079060,1769794232707,-500.0,0.00013855,2]
[404079061,1769794232716,-500.0,0.00013855,2]
[404079062,1769794232727,-500.0,0.00013862,2]
[404079063,1769794232738,-245.79069108,0.00013862,2]
[404079064,1769794232748,-352.54335028,0.00013862,2]
[404079065,1769794232757,-227.0727926,0.00013862,2]
[404079066,1769794232766,-40521.61019175,0.00013863,2]
[404079067,1769794232781,-148686.29002197,0.00013863,2]
[404079068,1769794232793,-1669.45,0.00013863,2]
[404079069,1769794232808,-18346.90149473,0.00013863,2]
[404079070,1769794232824,-166628.19304874,0.00013863,2]
[404079071,1769794232837,-11348.63317956,0.00013863,2]
[404079072,1769794232852,-148306.27809922,0.00013863,2]
[404079073,1769794232878,-557.53554408,0.00013863,2]
[404079074,1769794232913,-1032.00616953,0.00013863,2]
[404079075,1769794238008,-26553.99095261,0.00013863,2]
[404079076,1769794238066,-434.29322458,0.00013863,2]
[404079077,1769794238122,-5738.6004,0.00013863,2]
[404079078,1769794238178,-13380.60546218,0.00013863,2]
[404079131,1769794240152,-414.745,0.00013863,2]
[404079132,1769794240165,-1408.38831748,0.00013863,2]
[404079133,1769794240206,-1396120.50399357,0.00013863,2]
[404079134,1769794240217,-42621.52320488,0.00013864,2]
[404079135,1769794240227,-443.0,0.00013869,2]
[404079136,1769794240241,-596.0,0.00013893,2]
[404079137,1769794240250,-470.0,0.00013897,2]
[404079138,1769794240259,-376.0,0.0001392,2]
[404079139,1769794240268,-166.66,0.00013931,2]
[404079140,1769794240277,-522.84,0.00013934,2]
[404079141,1769794240288,-756.99855448,0.00013944,2]
[404079142,1769794240298,-1158.0,0.00013948,2]
[404079143,1769794240307,-158.20133921,0.00013961,2]
[404079144,1769794240317,-597.7591312,0.00013963,2]
[404079145,1769794240326,-1697.0,0.00013976,2]
[404079146,1769794240336,-1912.0,0.00014004,2]
[404079147,1769794240346,-500.0,0.0001401,2]
[404079148,1769794240355,-342.84674472,0.0001401,2]
[404079149,1769794240365,-500.0,0.0001401,2]
[404079150,1769794240374,-531.74116736,0.0001401,2]
[404079151,1769794240383,-500.0,0.0001401,2]
[404079152,1769794240392,-500.0,0.0001401,2]
[404079153,1769794240401,-500.0,0.0001401,2]
[404079154,1769794240410,-500.0,0.0001401,2]
[404079155,1769794240420,-500.0,0.0001401,2]
[404079156,1769794240433,-500.0,0.0001401,2]
[404079157,1769794240443,-500.0,0.0001401,2]
[404079158,1769794240452,-500.0,0.0001401,2]
[404079159,1769794240462,-500.0,0.0001401,2]
[404079160,1769794240471,-500.0,0.0001401,2]
[404079161,1769794240481,-500.0,0.0001401,2]
[404079162,1769794240491,-500.0,0.0001401,2]
[404079163,1769794240500,-500.0,0.0001401,2]
[404079164,1769794240510,-500.0,0.0001401,2]
[404079165,1769794240520,-500.0,0.0001401,2]
[404079166,1769794240529,-541.12934131,0.0001401,2]
[404079167,1769794240539,-500.0,0.0001401,2]
[404079168,1769794240549,-500.0,0.0001401,2]
[404079169,1769794240558,-500.0,0.0001401,2]
[404079170,1769794240568,-500.0,0.0001401,2]
[404079171,1769794240577,-500.0,0.0001401,2]
[404079172,1769794240587,-244.79656408,0.0001401,2]
[404079173,1769794240597,-500.0,0.0001401,2]
[404079174,1769794240607,-500.0,0.0001401,2]
[404079175,1769794240617,-500.0,0.0001401,2]
[404079176,1769794240630,-500.0,0.0001401,2]
[404079177,1769794240641,-500.0,0.0001401,2]
[404079178,1769794240651,-518.22564834,0.0001401,2]
[404079179,1769794240660,-500.0,0.0001401,2]
[404079180,1769794240671,-500.0,0.0001401,2]
[404079181,1769794240680,-500.0,0.0001401,2]
[404079182,1769794240690,-500.0,0.0001401,2]
[404079183,1769794240700,-500.0,0.0001401,2]
[404079184,1769794240714,-396.00925811,0.0001401,2]
[404079185,1769794240724,-1134.55,0.0001401,2]
[404079186,1769794240735,-500.0,0.0001401,2]
[404079187,1769794240744,-500.0,0.0001401,2]
[404079188,1769794240754,-500.0,0.0001401,2]
[404079189,1769794240764,-500.0,0.0001401,2]
[404079190,1769794240774,-500.0,0.0001401,2]
[404079191,1769794240785,-500.0,0.0001401,2]
[404079192,1769794240794,-500.0,0.0001401,2]
[404079193,1769794240803,-500.0,0.0001401,2]
[404079194,1769794240814,-500.0,0.0001401,2]
[404079195,1769794240824,-619.86272074,0.0001401,2]
[404079196,1769794240839,-500.0,0.0001401,2]
[404079197,1769794240851,-500.0,0.0001401,2]
[404079198,1769794240861,-500.0,0.0001401,2]
[404079199,1769794240872,-500.0,0.0001401,2]
[404079200,1769794240883,-208.77047208,0.0001401,2]
[404079201,1769794240893,-530.17,0.0001401,2]
[404079202,1769794240904,-530.17,0.0001401,2]
[404079203,1769794240915,-530.17,0.0001401,2]
[404079204,1769794240926,-530.17,0.0001401,2]
[404079205,1769794240937,-530.17,0.0001401,2]
[404079206,1769794240948,-530.17,0.0001401,2]
[404079207,1769794240958,-530.17,0.0001401,2]
[404079208,1769794240968,-530.17,0.0001401,2]
[404079209,1769794240977,-530.17,0.0001401,2]
[404079210,1769794240987,-530.17,0.0001401,2]
[404079211,1769794240998,-500.0,0.0001401,2]
[404079212,1769794241009,-500.0,0.0001401,2]
[404079213,1769794241019,-500.0,0.0001401,2]
[404079214,1769794241032,-500.0,0.0001401,2]
[404079215,1769794241042,-500.0,0.0001401,2]
[404079216,1769794241051,-500.0,0.0001401,2]
[404079217,1769794241060,-500.0,0.0001401,2]
[404079218,1769794241069,-500.0,0.0001401,2]
[404079219,1769794241079,-500.0,0.0001401,2]
[404079220,1769794241089,-500.0,0.0001401,2]
[404079221,1769794241099,-271.3035718,0.0001401,2]
[404079222,1769794241108,-500.0,0.0001401,2]
[404079223,1769794241118,-500.0,0.0001401,2]
[404079224,1769794241129,-500.0,0.0001401,2]
[404079225,1769794241139,-500.0,0.0001401,2]
[404079226,1769794241148,-500.0,0.0001401,2]
[404079227,1769794241158,-466.47309168,0.0001401,2]
[404079228,1769794241169,-500.0,0.0001401,2]
[404079229,1769794241180,-500.0,0.0001401,2]
[404079230,1769794241191,-500.0,0.0001401,2]
[404079231,1769794241200,-500.0,0.0001401,2]
[404079232,1769794241210,-500.0,0.0001401,2]
[404079233,1769794241220,-500.0,0.0001401,2]
[404079234,1769794241230,-500.0,0.0001401,2]
[404079235,1769794241239,-500.0,0.0001401,2]
[404079236,1769794241249,-385.18354163,0.0001401,2]
[404079237,1769794241260,-370.45918944,0.0001401,2]
[404079238,1769794241271,-502.11575154,0.0001401,2]
[404079239,1769794241283,-500.0,0.0001401,2]
[404079240,1769794241292,-500.0,0.0001401,2]
[404079241,1769794241303,-500.0,0.0001401,2]
[404079242,1769794241312,-500.0,0.0001401,2]
[404079243,1769794241323,-500.0,0.0001401,2]
[404079244,1769794241334,-500.0,0.0001401,2]
[404079245,1769794241343,-500.0,0.0001401,2]
[404079246,1769794241353,-500.0,0.0001401,2]
[404079247,1769794241363,-500.0,0.0001401,2]
[404079248,1769794241373,-500.0,0.0001401,2]
[404079249,1769794241382,-500.0,0.0001401,2]
[404079250,1769794241391,-326.23818299,0.0001401,2]
[404079251,1769794241401,-500.0,0.0001401,2]
[404079252,1769794241420,-500.0,0.0001401,2]
[404079253,1769794241431,-500.0,0.0001401,2]
[404079254,1769794241441,-500.0,0.0001401,2]
[404079255,1769794241451,-500.0,0.0001401,2]
[404079256,1769794241460,-500.0,0.0001401,2]
[404079257,1769794241471,-500.0,0.0001401,2]
[404079258,1769794241481,-294.00680809,0.0001401,2]
[404079259,1769794241491,-500.0,0.0001401,2]
[404079260,1769794241501,-500.0,0.0001401,2]
[404079261,1769794241511,-500.0,0.0001401,2]
[404079262,1769794241521,-339.71365586,0.0001401,2]
[404079263,1769794241531,-500.0,0.0001401,2]
[404079264,1769794241541,-500.0,0.0001401,2]
[404079265,1769794241551,-500.0,0.0001401,2]
[404079266,1769794241561,-500.0,0.0001401,2]
[404079267,1769794241571,-500.0,0.0001401,2]
[404079268,1769794241581,-500.0,0.0001401,2]
[404079269,1769794241591,-500.0,0.0001401,2]
[404079270,1769794241600,-500.0,0.0001401,2]
[404079271,1769794241610,-622.5575592,0.0001401,2]
[404079272,1769794241620,-500.0,0.0001401,2]
[404079273,1769794241631,-500.0,0.0001401,2]
[404079274,1769794241641,-500.0,0.0001401,2]
[404079275,1769794241651,-500.0,0.0001401,2]
[404079276,1769794241661,-500.0,0.0001401,2]
[404079277,1769794241671,-500.0,0.0001401,2]
[404079278,1769794241681,-500.0,0.0001401,2]
[404079279,1769794241691,-500.0,0.0001401,2]
[404079280,1769794241700,-500.0,0.0001401,2]
[404079281,1769794241709,-500.0,0.0001401,2]
[404079282,1769794241721,-500.0,0.0001401,2]
[404079283,1769794241730,-500.0,0.0001401,2]
[404079284,1769794241740,-500.0,0.0001401,2]
[404079285,1769794241750,-500.0,0.0001401,2]
[404079286,1769794241759,-500.0,0.0001401,2]
[404079287,1769794241769,-500.0,0.0001401,2]
[404079288,1769794241782,-500.0,0.0001401,2]
[404079289,1769794241793,-500.0,0.0001401,2]
[404079290,1769794241805,-500.0,0.0001401,2]
[404079291,1769794241815,-519.46286686,0.0001401,2]
[404079292,1769794241826,-500.0,0.0001401,2]
[404079293,1769794241835,-500.0,0.0001401,2]
[404079294,1769794241844,-500.0,0.0001401,2]
[404079295,1769794241856,-500.0,0.0001401,2]
[404079296,1769794241866,-500.0,0.0001401,2]
[404079297,1769794241876,-500.0,0.0001401,2]
[404079298,1769794241886,-500.0,0.0001401,2]
[404079299,1769794241895,-500.0,0.0001401,2]
[404079300,1769794241905,-500.0,0.0001401,2]
[404079301,1769794241915,-500.0,0.0001401,2]
[404079302,1769794241925,-500.0,0.0001401,2]
[404079303,1769794241934,-500.0,0.0001401,2]
[404079304,1769794241944,-326.5559361,0.0001401,2]
[404079305,1769794241954,-500.0,0.0001401,2]
[404079306,1769794241965,-500.0,0.0001401,2]
[404079307,1769794241978,-500.0,0.0001401,2]
[404079308,1769794241988,-500.0,0.0001401,2]
[404079309,1769794241998,-500.0,0.0001401,2]
[404079310,1769794242008,-500.0,0.0001401,2]
[404079311,1769794242018,-500.0,0.0001401,2]
[404079312,1769794242028,-1369.0,0.00014031,2]
[404079313,1769794242039,-150.0,0.00014044,2]
[404079314,1769794242048,-183.75,0.00014044,2]
[404079315,1769794242058,-1344.0,0.00014059,2]
[404079316,1769794242068,-811.0,0.00014087,2]
[404079317,1769794242077,-33275.4141,0.00014099,2]
[404079318,1769794242087,-1000.0,0.00014099,2]
[404079319,1769794242097,-1822.0,0.00014115,2]
[404079320,1769794242108,-434.79,0.0001414,2]
[404079321,1769794242118,-1666.0,0.00014142,2]
[404079322,1769794242128,-300.0,0.00014156,2]
[404079323,1769794242138,-1149.0,0.0001417,2]
[404079324,1769794242147,-378.0,0.00014198,2]
[404079325,1769794242157,-14033.5982435,0.00014213,2]
[404079326,1769794242168,-13234.29621735,0.00014224,2]
[404079327,1769794242178,-1717.0,0.00014225,2]
[404079328,1769794242188,-758.25790671,0.00014248,2]
[404079329,1769794242199,-692.0,0.00014253,2]
[404079330,1769794242209,-1322.0,0.00014281,2]
[404079331,1769794242219,-1134.55,0.00014284,2]
[404079332,1769794242229,-986.71,0.00014285,2]
[404079333,1769794242238,-915.8,0.00014285,2]
[404079334,1769794242249,-150.0,0.00014289,2]
[404079335,1769794242259,-150.0,0.00014289,2]
[404079336,1769794242269,-500.0,0.00014289,2]
[404079337,1769794242280,-500.0,0.00014289,2]
[404079338,1769794242290,-150.0,0.00014289,2]
[404079339,1769794242300,-500.0,0.00014289,2]
[404079340,1769794242616,-150.67479101,0.00014289,2]
[404079341,1769794242634,-150.0,0.00014289,2]
[404079342,1769794242644,-500.0,0.00014289,2]
[404079343,1769794242657,-500.0,0.00014289,2]
[404079344,1769794242673,-150.0,0.00014289,2]
[404079345,1769794242683,-500.0,0.00014289,2]
[404079346,1769794242693,-150.0,0.00014289,2]
[404079347,1769794242703,-500.0,0.00014289,2]